fUST/lending_fUST_20260525
["ID","MTS","AMOUNT","RATE_DAILY","PERIOD"]
[422948719,1779667848000,-249.11504851,8.767e-05,2]
[422948721,1779667848000,-500.0,8.767e-05,2]
[422948712,1779667848000,-500.0,8.767e-05,2]
[422948714,1779667848000,-466.48,8.767e-05,2]
[422948718,1779667848000,-500.0,8.767e-05,2]
[422948723,1779667848000,-500.0,8.767e-05,2]
[422948724,1779667848000,-8.58494563,8.767e-05,2]
[422948726,1779667848000,-491.41505437,8.767e-05,2]
[422948728,1779667848000,-189.11445796,8.767e-05,2]
[422948606,1779667848000,-162.99813034,8.493e-05,2]
[422948666,1779667848000,-500.0,8.767e-05,2]
[422948661,1779667848000,-500.0,8.767e-05,2]
[422948711,1779667848000,-628.86,8.767e-05,2]
[422948658,1779667848000,-500.0,8.767e-05,2]
[422948616,1779667848000,-500.0,8.493e-05,2]
[422948672,1779667848000,-500.0,8.767e-05,2]
[422948622,1779667848000,-228.36867976,8.537e-05,2]
[422948610,1779667848000,-500.0,8.493e-05,2]
[422948612,1779667848000,-500.0,8.493e-05,2]
[422948618,1779667848000,-500.0,8.493e-05,2]
[422948614,1779667848000,-500.0,8.493e-05,2]
[422948620,1779667848000,-312.25814859,8.513e-05,2]
[422948628,1779667848000,-345.20891713,8.744e-05,2]
[422948626,1779667848000,-158.25773298,8.537e-05,7]
[422948624,1779667848000,-417.64646772,8.537e-05,2]
[422948632,1779667848000,-609.9426,8.767e-05,2]
[422948634,1779667848000,-500.0,8.767e-05,2]
[422948642,1779667848000,-397.64,8.767e-05,2]
[422948644,1779667848000,-234.12,8.767e-05,2]
[422948647,1779667848000,-500.0,8.767e-05,2]
[422948636,1779667848000,-500.0,8.767e-05,2]
[422948649,1779667848000,-500.0,8.767e-05,2]
[422948630,1779667848000,-540.2469,8.767e-05,2]
[422948652,1779667848000,-500.0,8.767e-05,2]
[422948655,1779667848000,-503.12440845,8.767e-05,2]
[422948822,1779667849000,-500.0,8.767e-05,2]
[422948818,1779667849000,-500.0,8.767e-05,2]
[422948805,1779667849000,-500.0,8.767e-05,2]
[422948816,1779667849000,-500.0,8.767e-05,2]
[422948800,1779667849000,-500.0,8.767e-05,2]
[422948794,1779667849000,-500.0,8.767e-05,2]
[422948798,1779667849000,-500.0,8.767e-05,2]
[422948795,1779667849000,-500.0,8.767e-05,2]
[422948791,1779667849000,-500.0,8.767e-05,2]
[422948808,1779667849000,-500.0,8.767e-05,2]
[422948786,1779667849000,-514.72069811,8.767e-05,2]
[422948803,1779667849000,-500.0,8.767e-05,2]
[422948820,1779667849000,-500.0,8.767e-05,2]
[422948844,1779667849000,-215.91958107,8.767e-05,2]
[422948810,1779667849000,-380.55839579,8.767e-05,2]
[422948812,1779667849000,-500.0,8.767e-05,2]
[422948814,1779667849000,-500.0,8.767e-05,2]
[422948836,1779667849000,-500.0,8.767e-05,2]
[422948825,1779667849000,-500.0,8.767e-05,2]
[422948827,1779667849000,-500.0,8.767e-05,2]
[422948831,1779667849000,-500.0,8.767e-05,2]
[422948829,1779667849000,-500.0,8.767e-05,2]
[422948833,1779667849000,-500.0,8.767e-05,2]
[422948838,1779667849000,-500.0,8.767e-05,2]
[422948835,1779667849000,-500.0,8.767e-05,2]
[422948790,1779667849000,-500.0,8.767e-05,2]
[422948824,1779667849000,-500.0,8.767e-05,2]
[422948788,1779667849000,-500.49892054,8.767e-05,2]
[422948743,1779667849000,-500.0,8.767e-05,2]
[422948773,1779667849000,-500.0,8.767e-05,2]
[422948734,1779667849000,-310.88554204,8.767e-05,2]
[422948733,1779667849000,-329.08,8.493e-05,2]
[422948738,1779667849000,-500.0,8.767e-05,2]
[422948742,1779667849000,-500.0,8.767e-05,2]
[422948731,1779667849000,-500.0,8.219e-05,2]
[422948736,1779667849000,-500.0,8.767e-05,2]
[422948740,1779667849000,-500.0,8.767e-05,2]
[422948745,1779667849000,-500.0,8.767e-05,2]
[422948754,1779667849000,-500.0,8.767e-05,2]
[422948756,1779667849000,-500.0,8.767e-05,2]
[422948762,1779667849000,-500.0,8.767e-05,2]
[422948760,1779667849000,-576.41,8.767e-05,2]
[422948775,1779667849000,-500.0,8.767e-05,2]
[422948747,1779667849000,-500.0,8.767e-05,2]
[422948750,1779667849000,-500.0,8.767e-05,2]
[422948764,1779667849000,-500.0,8.767e-05,2]
[422948749,1779667849000,-531.69,8.767e-05,2]
[422948752,1779667849000,-500.0,8.767e-05,2]
[422948768,1779667849000,-500.0,8.767e-05,2]
[422948766,1779667849000,-500.0,8.767e-05,2]
[422948777,1779667849000,-500.0,8.767e-05,2]
[422948780,1779667849000,-500.0,8.767e-05,2]
[422948779,1779667849000,-500.0,8.767e-05,2]
[422948784,1779667849000,-500.0,8.767e-05,2]
[422948770,1779667849000,-500.0,8.767e-05,2]
[422948782,1779667849000,-500.0,8.767e-05,2]
[422948758,1779667849000,-500.0,8.767e-05,2]
[422948842,1779667849000,-544.43,8.767e-05,2]
[422948856,1779667849000,-500.0,8.767e-05,2]
[422948846,1779667849000,-500.0,8.767e-05,2]
[422948917,1779667849000,-500.0,8.767e-05,2]
[422948904,1779667849000,-565.88,8.767e-05,2]
[422948913,1779667849000,-500.0,8.767e-05,2]
[422948900,1779667849000,-677.01,8.767e-05,2]
[422948915,1779667849000,-500.0,8.767e-05,2]
[422948906,1779667849000,-500.0,8.767e-05,2]
[422948908,1779667849000,-465.93011167,8.767e-05,2]
[422948919,1779667849000,-500.0,8.767e-05,2]
[422948921,1779667849000,-501.36672553,8.767e-05,2]
[422948923,1779667849000,-500.0,8.767e-05,2]
[422948925,1779667849000,-500.0,8.767e-05,2]
[422948934,1779667849000,-500.0,8.767e-05,2]
[422948902,1779667849000,-500.0,8.767e-05,2]
[422948926,1779667849000,-500.0,8.767e-05,2]
[422948936,1779667849000,-500.0,8.767e-05,2]
[422948937,1779667849000,-500.0,8.767e-05,2]
[422948930,1779667849000,-500.0,8.767e-05,2]
[422948941,1779667849000,-500.0,8.767e-05,2]
[422948939,1779667849000,-500.0,8.767e-05,2]
[422948943,1779667849000,-500.0,8.767e-05,2]
[422948932,1779667849000,-500.0,8.767e-05,2]
[422948945,1779667849000,-500.0,8.767e-05,2]
[422948947,1779667849000,-638.3,8.767e-05,2]
[422948952,1779667849000,-554.18,8.767e-05,2]
[422948950,1779667849000,-973.98,8.767e-05,2]
[422948948,1779667849000,-440.45,8.767e-05,2]
[422948928,1779667849000,-962.63,8.767e-05,2]
[422948911,1779667849000,-500.0,8.767e-05,2]
[422948840,1779667849000,-500.0,8.767e-05,2]
[422948909,1779667849000,-500.0,8.767e-05,2]
[422948898,1779667849000,-500.0,8.767e-05,2]
[422948848,1779667849000,-500.0,8.767e-05,2]
[422948864,1779667849000,-500.0,8.767e-05,2]
[422948862,1779667849000,-500.0,8.767e-05,2]
[422948850,1779667849000,-523.05,8.767e-05,2]
[422948866,1779667849000,-500.0,8.767e-05,2]
[422948869,1779667849000,-500.0,8.767e-05,2]
[422948852,1779667849000,-500.0,8.767e-05,2]
[422948858,1779667849000,-500.0,8.767e-05,2]
[422948854,1779667849000,-500.0,8.767e-05,2]
[422948860,1779667849000,-500.0,8.767e-05,2]
[422948871,1779667849000,-500.0,8.767e-05,2]
[422948873,1779667849000,-524.09484834,8.767e-05,2]
[422948867,1779667849000,-500.0,8.767e-05,2]
[422948876,1779667849000,-500.0,8.767e-05,2]
[422948875,1779667849000,-500.0,8.767e-05,2]
[422948895,1779667849000,-500.0,8.767e-05,2]
[422948887,1779667849000,-512.22,8.767e-05,2]
[422948891,1779667849000,-500.0,8.767e-05,2]
[422948889,1779667849000,-500.0,8.767e-05,2]
[422948893,1779667849000,-500.0,8.767e-05,2]
[422948885,1779667849000,-500.0,8.767e-05,2]
[422948882,1779667849000,-500.0,8.767e-05,2]
[422948880,1779667849000,-500.0,8.767e-05,2]
[422948878,1779667849000,-500.0,8.767e-05,2]
[422948884,1779667849000,-500.0,8.767e-05,2]
[422948897,1779667849000,-544.59,8.767e-05,2]
[422948990,1779667850000,-438.90942506,8.767e-05,2]
[422949005,1779667850000,-500.0,8.767e-05,2]
[422948994,1779667850000,-500.0,8.767e-05,2]
[422948992,1779667850000,-552.3,8.767e-05,2]
[422949003,1779667850000,-500.0,8.767e-05,2]
[422949001,1779667850000,-500.0,8.767e-05,2]
[422948998,1779667850000,-500.0,8.767e-05,2]
[422949011,1779667850000,-500.0,8.767e-05,2]
[422949007,1779667850000,-500.0,8.767e-05,2]
[422948999,1779667850000,-500.0,8.767e-05,2]
[422949009,1779667850000,-500.0,8.767e-05,2]
[422949013,1779667850000,-500.0,8.767e-05,2]
[422949017,1779667850000,-500.0,8.767e-05,2]
[422949015,1779667850000,-500.0,8.767e-05,2]
[422948989,1779667850000,-500.0,8.767e-05,2]
[422948995,1779667850000,-473.4264887,8.767e-05,2]
[422948987,1779667850000,-500.0,8.767e-05,2]
[422948954,1779667850000,-500.0,8.767e-05,2]
[422948977,1779667850000,-500.0,8.767e-05,2]
[422948961,1779667850000,-500.0,8.767e-05,2]
[422948955,1779667850000,-320.73,8.767e-05,2]
[422948964,1779667850000,-500.0,8.767e-05,2]
[422948957,1779667850000,-500.0,8.767e-05,2]
[422948966,1779667850000,-500.0,8.767e-05,2]
[422949026,1779667850000,-32.8546022,8.767e-05,2]
[422948959,1779667850000,-500.50540219,8.767e-05,2]
[422948968,1779667850000,-659.81,8.767e-05,2]
[422948963,1779667850000,-500.0,8.767e-05,2]
[422948970,1779667850000,-500.0,8.767e-05,2]
[422948981,1779667850000,-500.0,8.767e-05,2]
[422948972,1779667850000,-500.0,8.767e-05,2]
[422948982,1779667850000,-500.0,8.767e-05,2]
[422948973,1779667850000,-500.0,8.767e-05,2]
[422948975,1779667850000,-500.0,8.767e-05,2]
[422948986,1779667850000,-500.0,8.767e-05,2]
[422948979,1779667850000,-500.0,8.767e-05,2]
[422948984,1779667850000,-500.0,8.767e-05,2]
[422949022,1779667850000,-500.0,8.767e-05,2]
[422949041,1779667850000,-282.60447487,8.767e-05,2]
[422949019,1779667850000,-500.0,8.767e-05,2]
[422949020,1779667850000,-500.0,8.767e-05,2]
[422949079,1779667850000,-500.0,9.041e-05,2]
[422949077,1779667850000,-500.0,9.041e-05,2]
[422949083,1779667850000,-304.76,9.041e-05,2]
[422949093,1779667850000,-500.0,9.041e-05,2]
[422949095,1779667850000,-435.09,9.041e-05,2]
[422949089,1779667850000,-220.03925725,9.041e-05,2]
[422949087,1779667850000,-598.95,9.041e-05,2]
[422949097,1779667850000,-500.0,9.041e-05,2]
[422949085,1779667850000,-500.0,9.041e-05,2]
[422949091,1779667850000,-500.0,9.041e-05,2]
[422949101,1779667850000,-249.81,9.041e-05,2]
[422949099,1779667850000,-500.0,9.041e-05,2]
[422949105,1779667850000,-40.19175706,9.041e-05,2]
[422949103,1779667850000,-500.0,9.041e-05,2]
[422949072,1779667850000,-500.0,9.041e-05,2]
[422949068,1779667850000,-500.0,9.041e-05,2]
[422949070,1779667850000,-500.0,9.041e-05,2]
[422949066,1779667850000,-586.3634,9.041e-05,2]
[422949024,1779667850000,-603.80105878,8.767e-05,2]
[422949029,1779667850000,-581.32882187,8.767e-05,2]
[422949031,1779667850000,-217.39552513,8.767e-05,2]
[422949047,1779667850000,-586.85,8.767e-05,2]
[422949048,1779667850000,-580.73841062,8.767e-05,2]
[422949073,1779667850000,-473.1,9.041e-05,2]
[422949052,1779667850000,-500.0,8.767e-05,2]
[422949054,1779667850000,-468.38722288,8.955e-05,2]
[422949050,1779667850000,-500.0,8.767e-05,2]
[422949043,1779667850000,-500.79887992,8.767e-05,2]
[422949056,1779667850000,-456.73735952,8.98e-05,2]
[422949058,1779667850000,-626.46970158,8.98e-05,2]
[422949060,1779667850000,-214.11974939,8.98e-05,7]
[422949064,1779667850000,-563.8261,9.041e-05,2]
[422949075,1779667850000,-186.3,9.041e-05,2]
[422949062,1779667850000,-316.51546596,8.98e-05,7]
[422949045,1779667850000,-500.0,8.767e-05,2]
[422949081,1779667850000,-500.0,9.041e-05,2]
[422951836,1779668003000,-300.0,8.118e-05,2]
[422951838,1779668056000,-150.0,8.118e-05,2]
[422951839,1779668110000,-500.0,8.118e-05,2]
[422951840,1779668163000,-500.0,8.118e-05,2]
[422951841,1779668216000,-500.0,8.118e-05,2]
[422951842,1779668269000,-473.2715339,8.118e-05,2]
[422951843,1779668282000,164.757807,3.681e-05,2]
[422951848,1779668323000,-150.0,8.118e-05,2]
[422951851,1779668376000,-23712.20222256,8.119e-05,2]
[422951852,1779668429000,-64575.62091249,8.119e-05,2]
[422951861,1779668747000,-435.00630916,8.018e-05,2]
[422951860,1779668747000,-500.0,8.018e-05,2]
[422951863,1779668844000,-381.29007373,8.018e-05,2]
[422951864,1779668844000,-38.01906545,8.018e-05,2]
[422951862,1779668844000,-64.99369084,8.018e-05,2]
[422951931,1779669032000,-26999.81015092,7.919e-05,2]
[422951929,1779669032000,-500.0,7.918e-05,2]
[422951927,1779669032000,-615.4995662,7.918e-05,2]
[422951924,1779669032000,-2691.2942408,7.84e-05,2]
[422951922,1779669032000,-2308.7057592,7.84e-05,2]
[422952284,1779669040000,-325.99178291,7.919e-05,2]
[422952283,1779669040000,-359.99275684,7.919e-05,2]
[422952286,1779669042000,-2721.24019379,7.919e-05,2]
[422952296,1779669043000,-1037.38318,7.919e-05,2]
[422952294,1779669043000,-381.96055923,7.919e-05,2]
[422952295,1779669043000,-1115.11630487,7.919e-05,2]
[422952297,1779669044000,-911.18917657,7.919e-05,2]
[422952298,1779669044000,-12809.523465,7.919e-05,2]
[422952300,1779669044000,-500.0,8.219e-05,2]
[422952309,1779669044000,-500.0,8.219e-05,2]
[422952301,1779669044000,-500.0,8.219e-05,2]
[422952308,1779669044000,-500.0,8.219e-05,2]
[422952306,1779669044000,-500.0,8.219e-05,2]
[422952310,1779669044000,-500.0,8.219e-05,2]
[422952299,1779669044000,-150.0,8.019e-05,2]
[422952303,1779669044000,-500.0,8.219e-05,2]
[422952304,1779669044000,-500.0,8.219e-05,2]
[422952316,1779669044000,-283.02339873,8.219e-05,2]
[422952312,1779669044000,-473.3816067,8.219e-05,2]
[422952313,1779669044000,-514.08824294,8.219e-05,2]
[422952314,1779669044000,-500.0,8.219e-05,2]
[422952302,1779669044000,-500.0,8.219e-05,2]
[422952315,1779669044000,-500.0,8.219e-05,2]
[422952311,1779669044000,-500.0,8.219e-05,2]
[422952307,1779669044000,-500.0,8.219e-05,2]
[422952305,1779669044000,-500.0,8.219e-05,2]
[422952335,1779669048000,-500.0,8.219e-05,2]
[422952337,1779669048000,-265.97,8.219e-05,2]
[422952329,1779669048000,-500.0,8.219e-05,2]
[422952328,1779669048000,-216.97660127,8.219e-05,2]
[422952330,1779669048000,-500.0,8.219e-05,2]
[422952334,1779669048000,-500.0,8.219e-05,2]
[422952336,1779669048000,-500.0,8.219e-05,2]
[422952331,1779669048000,-500.0,8.219e-05,2]
[422952332,1779669048000,-500.0,8.219e-05,2]
[422952341,1779669048000,-500.0,8.219e-05,2]
[422952343,1779669048000,-280.70219472,8.219e-05,2]
[422952333,1779669048000,-500.0,8.219e-05,2]
[422952340,1779669048000,-51.50867618,8.219e-05,2]
[422952339,1779669048000,-448.49132382,8.219e-05,2]
[422952338,1779669048000,-500.0,8.219e-05,2]
[422952342,1779669048000,-500.0,8.219e-05,2]
[422952344,1779669091000,-4033.84844777,7.919e-05,2]
[422952355,1779669257000,-300.0,7.918e-05,2]
[422952357,1779669257000,-70101.14397404,7.919e-05,2]
[422952356,1779669257000,-150.0,7.918e-05,2]
[422952354,1779669257000,-500.0,7.918e-05,2]
[422952352,1779669257000,-500.0,7.918e-05,2]
[422952350,1779669257000,-490.33761628,7.918e-05,2]
[422952351,1779669257000,-500.0,7.918e-05,2]
[422952349,1779669257000,-500.0,7.918e-05,2]
[422952348,1779669257000,-644.4803759,7.918e-05,2]
[422952347,1779669257000,-500.0,7.918e-05,2]
[422952353,1779669257000,-372.9755743,7.918e-05,2]
[422952346,1779669257000,-5000.0,7.839e-05,2]
[422952358,1779669257000,-28345.47813457,7.919e-05,2]
[422952360,1779669257000,-178.22859509,8.214e-05,2]
[422952359,1779669257000,-501.19446224,8.214e-05,2]
[422952372,1779669257000,-500.0,8.219e-05,2]
[422952371,1779669257000,-500.0,8.219e-05,2]
[422952369,1779669257000,-500.0,8.219e-05,2]
[422952367,1779669257000,-500.0,8.219e-05,2]
[422952368,1779669257000,-500.0,8.219e-05,2]
[422952370,1779669257000,-197.58,8.219e-05,2]
[422952365,1779669257000,-500.0,8.219e-05,2]
[422952364,1779669257000,-500.0,8.219e-05,2]
[422952362,1779669257000,-219.29780528,8.219e-05,2]
[422952363,1779669257000,-500.0,8.219e-05,2]
[422952361,1779669257000,-537.6845,8.214e-05,2]
[422952366,1779669257000,-500.0,8.219e-05,2]
[422952380,1779669258000,-500.0,8.219e-05,2]
[422952388,1779669258000,-586.23865914,8.219e-05,2]
[422952385,1779669258000,-480.96,8.219e-05,2]
[422952384,1779669258000,-388.09,8.219e-05,2]
[422952386,1779669258000,-500.0,8.219e-05,2]
[422952383,1779669258000,-500.0,8.219e-05,2]
[422952382,1779669258000,-500.0,8.219e-05,2]
[422952375,1779669258000,-500.0,8.219e-05,2]
[422952379,1779669258000,-500.0,8.219e-05,2]
[422952376,1779669258000,-500.0,8.219e-05,2]
[422952377,1779669258000,-248.47,8.219e-05,2]
[422952378,1779669258000,-500.0,8.219e-05,2]
[422952387,1779669258000,-500.0,8.219e-05,2]
[422952373,1779669258000,-500.0,8.219e-05,2]
[422952374,1779669258000,-500.0,8.219e-05,2]
[422952381,1779669258000,-500.0,8.219e-05,2]
[422952389,1779669258000,-500.0,8.219e-05,2]
[422952390,1779669258000,-500.0,8.219e-05,2]
[422952391,1779669258000,-345.13,8.219e-05,2]
[422952392,1779669258000,-514.73,8.219e-05,2]
[422952409,1779669258000,-500.0,8.219e-05,2]
[422952408,1779669258000,-500.0,8.219e-05,2]
[422952406,1779669258000,-500.0,8.219e-05,2]
[422952407,1779669258000,-500.0,8.219e-05,2]
[422952401,1779669258000,-500.0,8.219e-05,2]
[422952404,1779669258000,-500.0,8.219e-05,2]
[422952403,1779669258000,-500.0,8.219e-05,2]
[422952405,1779669258000,-500.0,8.219e-05,2]
[422952399,1779669258000,-500.0,8.219e-05,2]
[422952402,1779669258000,-633.11829702,8.219e-05,2]
[422952393,1779669258000,-500.0,8.219e-05,2]
[422952395,1779669258000,-500.0,8.219e-05,2]
[422952396,1779669258000,-237.4,8.219e-05,2]
[422952394,1779669258000,-500.0,8.219e-05,2]
[422952398,1779669258000,-500.0,8.219e-05,2]
[422952400,1779669258000,-500.0,8.219e-05,2]
[422952397,1779669258000,-533.15,8.219e-05,2]
[422952420,1779669259000,-500.0,8.219e-05,2]
[422952426,1779669259000,-500.0,8.219e-05,2]
[422952425,1779669259000,-592.38,8.219e-05,2]
[422952424,1779669259000,-500.0,8.219e-05,2]
[422952422,1779669259000,-500.0,8.219e-05,2]
[422952423,1779669259000,-500.0,8.219e-05,2]
[422952421,1779669259000,-500.0,8.219e-05,2]
[422952427,1779669259000,-504.36,8.219e-05,2]
[422952410,1779669259000,-500.0,8.219e-05,2]
[422952416,1779669259000,-500.0,8.219e-05,2]
[422952419,1779669259000,-500.0,8.219e-05,2]
[422952418,1779669259000,-500.0,8.219e-05,2]
[422952413,1779669259000,-500.0,8.219e-05,2]
[422952415,1779669259000,-500.0,8.219e-05,2]
[422952414,1779669259000,-500.0,8.219e-05,2]
[422952412,1779669259000,-500.0,8.219e-05,2]
[422952411,1779669259000,-500.0,8.219e-05,2]
[422952417,1779669259000,-500.0,8.219e-05,2]
[422952428,1779669259000,-382.39,8.219e-05,2]
[422952439,1779669259000,-842.3,8.219e-05,2]
[422952430,1779669259000,-500.0,8.219e-05,2]
[422952429,1779669259000,-500.0,8.219e-05,2]
[422952447,1779669259000,-403.95381323,8.219e-05,2]
[422952445,1779669259000,-500.0,8.219e-05,2]
[422952446,1779669259000,-500.0,8.219e-05,2]
[422952444,1779669259000,-500.0,8.219e-05,2]
[422952443,1779669259000,-578.96,8.219e-05,2]
[422952442,1779669259000,-500.0,8.219e-05,2]
[422952441,1779669259000,-527.89022961,8.219e-05,2]
[422952448,1779669259000,-500.0,8.219e-05,2]
[422952438,1779669259000,-367.51093634,8.219e-05,2]
[422952437,1779669259000,-500.0,8.219e-05,2]
[422952436,1779669259000,-357.13,8.219e-05,2]
[422952434,1779669259000,-500.0,8.219e-05,2]
[422952433,1779669259000,-500.0,8.219e-05,2]
[422952435,1779669259000,-500.0,8.219e-05,2]
[422952432,1779669259000,-500.0,8.219e-05,2]
[422952431,1779669259000,-524.83666424,8.219e-05,2]
[422952440,1779669259000,-500.0,8.219e-05,2]
[422952463,1779669260000,-305.9,8.219e-05,2]
[422952462,1779669260000,-500.0,8.219e-05,2]
[422952460,1779669260000,-500.0,8.219e-05,2]
[422952461,1779669260000,-680.87,8.219e-05,2]
[422952458,1779669260000,-500.0,8.219e-05,2]
[422952459,1779669260000,-500.0,8.219e-05,2]
[422952456,1779669260000,-500.0,8.219e-05,2]
[422952454,1779669260000,-852.23,8.219e-05,2]
[422952455,1779669260000,-500.0,8.219e-05,2]
[422952452,1779669260000,-500.0,8.219e-05,2]
[422952453,1779669260000,-500.0,8.219e-05,2]
[422952451,1779669260000,-500.0,8.219e-05,2]
[422952450,1779669260000,-500.0,8.219e-05,2]
[422952449,1779669260000,-500.0,8.219e-05,2]
[422952465,1779669260000,-593.04,8.219e-05,2]
[422952457,1779669260000,-500.0,8.219e-05,2]
[422952464,1779669260000,-500.0,8.219e-05,2]
[422952466,1779669260000,-500.0,8.219e-05,2]
[422952467,1779669260000,-451.25,8.219e-05,2]
[422952483,1779669260000,-500.0,8.219e-05,2]
[422952482,1779669260000,-500.0,8.219e-05,2]
[422952481,1779669260000,-500.0,8.219e-05,2]
[422952480,1779669260000,-500.0,8.219e-05,2]
[422952479,1779669260000,-500.0,8.219e-05,2]
[422952478,1779669260000,-471.80735219,8.219e-05,2]
[422952476,1779669260000,-500.0,8.219e-05,2]
[422952477,1779669260000,-500.0,8.219e-05,2]
[422952475,1779669260000,-431.32,8.219e-05,2]
[422952474,1779669260000,-500.0,8.219e-05,2]
[422952472,1779669260000,-645.12,8.219e-05,2]
[422952470,1779669260000,-176.67,8.219e-05,2]
[422952471,1779669260000,-500.0,8.219e-05,2]
[422952469,1779669260000,-500.0,8.219e-05,2]
[422952468,1779669260000,-396.1,8.219e-05,2]
[422952473,1779669260000,-577.34,8.219e-05,2]
[422952493,1779669261000,-500.0,8.219e-05,2]
[422952499,1779669261000,-410.06029546,8.219e-05,2]
[422952497,1779669261000,-582.57,8.219e-05,2]
[422952498,1779669261000,-500.0,8.219e-05,2]
[422952496,1779669261000,-4664.096336,8.219e-05,2]
[422952495,1779669261000,-500.0,8.219e-05,2]
[422952494,1779669261000,-500.0,8.219e-05,2]
[422952492,1779669261000,-260.790586,8.219e-05,2]
[422952484,1779669261000,-500.0,8.219e-05,2]
[422952490,1779669261000,-533.82,8.219e-05,2]
[422952488,1779669261000,-4155.79,8.219e-05,2]
[422952489,1779669261000,-151.0,8.219e-05,2]
[422952487,1779669261000,-500.0,8.219e-05,2]
[422952486,1779669261000,-500.0,8.219e-05,2]
[422952485,1779669261000,-500.0,8.219e-05,2]
[422952501,1779669261000,-4664.096336,8.219e-05,2]
[422952491,1779669261000,-500.0,8.219e-05,2]
[422952502,1779669261000,-500.0,8.219e-05,2]
[422952500,1779669261000,-4664.096336,8.219e-05,2]
[422952504,1779669261000,-820.75,8.219e-05,2]
[422952519,1779669261000,-500.0,8.219e-05,2]
[422952520,1779669261000,-500.0,8.219e-05,2]
[422952518,1779669261000,-291.516136,8.219e-05,2]
[422952517,1779669261000,-500.0,8.219e-05,2]
[422952516,1779669261000,-291.516136,8.219e-05,2]
[422952515,1779669261000,-546.45,8.219e-05,2]
[422952514,1779669261000,-500.0,8.219e-05,2]
[422952512,1779669261000,-510.15,8.219e-05,2]
[422952505,1779669261000,-537.90444307,8.219e-05,2]
[422952511,1779669261000,-500.0,8.219e-05,2]
[422952510,1779669261000,-500.0,8.219e-05,2]
[422952509,1779669261000,-709.7651,8.219e-05,2]
[422952508,1779669261000,-500.0,8.219e-05,2]
[422952507,1779669261000,-235.96,8.219e-05,2]
[422952506,1779669261000,-500.0,8.219e-05,2]
[422952503,1779669261000,-4664.096336,8.219e-05,2]
[422952521,1779669261000,-291.516136,8.219e-05,2]
[422952513,1779669261000,-500.0,8.219e-05,2]
[422952535,1779669262000,-500.0,8.493e-05,2]
[422952534,1779669262000,-500.0,8.493e-05,2]
[422952539,1779669262000,-500.0,8.493e-05,2]
[422952536,1779669262000,-237.1434885,8.493e-05,2]
[422952538,1779669262000,-180.17,8.493e-05,2]
[422952532,1779669262000,-500.0,8.493e-05,2]
[422952533,1779669262000,-253.37,8.493e-05,2]
[422952531,1779669262000,-204.71,8.493e-05,2]
[422952526,1779669262000,-152.218109,8.219e-05,2]
[422952530,1779669262000,-500.0,8.493e-05,2]
[422952528,1779669262000,-500.0,8.493e-05,2]
[422952525,1779669262000,-195.78544652,8.219e-05,2]
[422952527,1779669262000,-600.0,8.382e-05,2]
[422952523,1779669262000,-500.0,8.219e-05,2]
[422952524,1779669262000,-204.42695525,8.219e-05,2]
[422952537,1779669262000,-500.0,8.493e-05,2]
[422952529,1779669262000,-500.0,8.493e-05,2]
[422952522,1779669262000,-291.516136,8.219e-05,2]
[422952540,1779669262000,-328.45,8.493e-05,2]
[422952543,1779669262000,-500.0,8.493e-05,2]
[422952541,1779669262000,-500.0,8.493e-05,2]
[422952559,1779669262000,-500.0,8.493e-05,2]
[422952557,1779669262000,-500.0,8.493e-05,2]
[422952558,1779669262000,-500.0,8.493e-05,2]
[422952556,1779669262000,-500.0,8.493e-05,2]
[422952555,1779669262000,-500.0,8.493e-05,2]
[422952553,1779669262000,-500.0,8.493e-05,2]
[422952552,1779669262000,-500.0,8.493e-05,2]
[422952554,1779669262000,-437.44,8.493e-05,2]
[422952550,1779669262000,-537.57,8.493e-05,2]
[422952551,1779669262000,-500.0,8.493e-05,2]
[422952544,1779669262000,-500.0,8.493e-05,2]